bitfinex-derivatives/quotes_SOLF0:USTF0_20250909
["timestamp","ask_amount","ask_price","bid_price","bid_amount"]
[1757384806363,2.69421384,212.17,212.07,7.71]
[1757384806564,7.96542404,212.17,212.07,7.71]
[1757384808068,7.56,212.13,212.02,7.71]
[1757384808264,7.56,212.1,212.02,7.71]
[1757384808458,7.56,212.1,212.0,317.04]
[1757384809861,7.56,212.07,212.0,317.04]
[1757384811161,7.56,212.07,211.98,8.65588393]
[1757384816769,5.2712102,212.09,211.98,8.65588393]
[1757384816969,12.8312102,212.11,212.0,7.71]
[1757384817167,7.56,212.11,212.0,7.71]
[1757384817472,2.69421384,212.09,212.0,7.71]
[1757384817670,7.56,212.08,212.0,7.71]
[1757384818775,7.56,212.08,212.0,10.40421384]
[1757384820471,7.56,212.08,212.0,7.71]
[1757384820872,5.2712102,212.1,212.0,7.71]
[1757384821070,7.56,212.12,212.02,7.71]
[1757384821469,7.56,212.12,212.04,2.69421384]
[1757384821670,7.56,212.12,212.05,99.87]
[1757384821866,5.2712102,212.14,212.05,99.87]
[1757384822172,5.2712102,212.15,212.05,102.56421384]
[1757384822369,5.2712102,212.14,212.05,7.71]
[1757384822564,7.56,212.13,212.05,7.71]
[1757384822965,12.8312102,212.13,212.02,25.16]
[1757384823272,12.8312102,212.13,212.03,7.71]
[1757384824477,7.56,212.13,212.03,7.71]
[1757384825976,12.8312102,212.13,212.03,7.71]
[1757384827673,5.2712102,212.12,212.03,22.06421384]
[1757384827878,10.25421384,212.12,211.99,7.71]
[1757384828069,5.2712102,212.1,211.99,85.88421384]
[1757384828276,12.8312102,212.11,212.0,7.71]
[1757384828575,5.2712102,212.1,212.0,7.71]
[1757384828776,7.56,212.11,212.0,7.71]
[1757384828777,7.56,212.08,212.0,7.71]
[1757384829680,12.8312102,212.08,211.98,0.94588393]
[1757384829877,12.8312102,212.08,211.98,8.65588393]
[1757384830576,7.56,212.08,211.98,8.65588393]
[1757384831080,12.8312102,212.08,211.98,51.35588393]
[1757384831282,7.56,212.08,211.98,8.65588393]
[1757384831476,12.8312102,212.08,211.98,8.65588393]
[1757384831978,7.56,212.08,211.98,8.65588393]
[1757384832179,5.2712102,212.1,212.01,7.71]
[1757384832480,5.2712102,212.12,212.01,7.71]
[1757384832676,5.2712102,212.11,212.01,7.71]
[1757384833082,7.56,212.13,211.98,43.26588393]
[1757384833083,5.2712102,212.12,212.04,7.71]
[1757384836078,12.8312102,212.13,212.04,7.71]
[1757384836279,5.2712102,212.12,212.04,7.71]
[1757384836980,5.2712102,212.11,212.04,7.71]
[1757384837284,5.2712102,212.12,212.04,7.71]
[1757384837682,5.2712102,212.11,212.04,7.71]
[1757384838183,7.28,212.1,212.0,51.31421384]
[1757384838881,5.2712102,212.13,212.04,7.74]
[1757384840386,12.5512102,212.12,212.04,7.74]
[1757384842286,7.28,212.12,212.04,7.74]
[1757384842785,7.28,212.12,212.04,10.43421384]
[1757384843282,7.28,212.12,212.04,128.75421384]
[1757384843475,7.28,212.12,212.06,0.03343734]
[1757384844190,5.2712102,212.17,212.11,7.74]
[1757384844486,5.2712102,212.19,212.11,7.74]
[1757384844988,5.2712102,212.19,212.12,2.69421384]
[1757384845186,5.2712102,212.19,212.13,0.03021697]
[1757384845885,5.2712102,212.21,212.13,0.03021697]
[1757384846084,12.5512102,212.22,212.14,7.74]
[1757384846285,12.5512102,212.22,212.16,1.72110858]
[1757384847084,7.28,212.22,212.18,1.72110858]
[1757384848089,7.28,212.22,212.14,69.96]
[1757384848090,7.28,212.22,212.14,7.74]
[1757384848284,7.28,212.22,212.17,1.72110858]
[1757384848484,12.7226502,212.23,212.17,1.72110858]
[1757384849492,14.44375878,212.23,212.17,1.72110858]
[1757384850089,12.7226502,212.23,212.17,1.72110858]
[1757384850284,14.44375878,212.23,212.17,1.72110858]
[1757384850683,14.44375878,212.23,212.16,1.72110858]
[1757384851883,9.17254858,212.23,212.16,1.72110858]
[1757384852187,14.44375878,212.23,212.16,1.72110858]
[1757384852386,7.45144,212.23,212.17,7.74]
[1757384852586,7.28,212.22,212.18,1.72110858]
[1757384853791,7.28,212.22,212.17,1.72110858]
[1757384854092,7.28,212.23,212.17,1.72110858]
[1757384854986,7.28,212.23,212.16,7.74]
[1757384855191,7.28,212.23,212.17,1.72110858]
[1757384855585,7.28,212.23,212.16,7.74]
[1757384855785,7.28,212.23,212.17,1.72110858]
[1757384856479,5.2712102,212.24,212.19,1.72110858]
[1757384856686,7.28,212.24,212.2,7.74]
[1757384856887,12.5512102,212.25,212.19,1.72110858]
[1757384857493,12.5512102,212.25,212.16,7.74]
[1757384857792,7.28,212.25,212.21,7.74]
[1757384858889,7.28,212.25,212.22,1.72110858]
[1757384859095,7.28,212.29,212.24,1.72110858]
[1757384859392,7.28,212.3,212.24,1.72110858]
[1757384859997,12.5512102,212.3,212.21,24.14]
[1757384860189,12.5512102,212.3,212.24,1.72110858]
[1757384861697,12.5512102,212.3,212.21,24.14]
[1757384861898,12.5512102,212.3,212.24,1.72110858]
[1757384862295,1.72110858,212.27,212.21,1.72110858]
[1757384862498,7.28,212.26,212.19,1.72110858]
[1757384864000,8.83110858,212.27,212.21,1.72110858]
[1757384864196,8.83110858,212.27,212.17,7.74]
[1757384864392,8.83110858,212.27,212.21,1.72110858]
[1757384865702,7.11,212.27,212.23,1.72110858]
[1757384865904,5.2712102,212.3,212.23,1.72110858]
[1757384866103,8.83110858,212.31,212.23,1.72110858]
[1757384867197,7.11,212.31,212.23,1.72110858]
[1757384867406,8.83110858,212.31,212.23,1.72110858]
[1757384869910,8.83110858,212.31,212.25,1.72110858]
[1757384871212,8.83110858,212.31,212.23,1.72110858]
[1757384871808,7.11,212.28,212.23,1.72110858]
[1757384872013,1.72110858,212.28,212.21,1.72110858]
[1757384872203,5.2712102,212.31,212.24,7.61]
[1757384872409,14.10231878,212.31,212.24,7.61]
[1757384873207,12.3812102,212.31,212.24,7.61]
[1757384873415,14.10231878,212.31,212.24,7.61]
[1757384874306,14.10231878,212.31,212.23,1.72110858]
[1757384875010,1.72110858,212.29,212.23,1.72110858]
[1757384875408,7.11,212.3,212.23,1.72110858]
[1757384875612,8.83110858,212.3,212.23,1.72110858]
[1757384876314,5.2712102,212.29,212.23,1.72110858]
[1757384876509,5.2712102,212.29,212.21,7.61]
[1757384876714,7.11,212.28,212.24,1.72110858]
[1757384876909,12.3812102,212.29,212.23,1.72110858]
[1757384877111,7.11,212.29,212.23,1.72110858]
[1757384877312,12.3812102,212.29,212.23,1.72110858]
[1757384877516,12.3812102,212.29,212.21,9.33110858]
[1757384877517,1.72110858,212.28,212.21,9.33110858]
[1757384878310,6.99231878,212.28,212.21,9.33110858]
[1757384879113,7.11,212.27,212.21,1.72110858]
[1757384879310,7.11,212.27,212.22,0.03054238]
[1757384879712,6.99231878,212.28,212.22,0.03054238]
[1757384879906,7.11,212.27,212.22,0.03054238]
[1757384880115,7.11,212.25,212.22,0.03054238]
[1757384880409,1.72110858,212.26,212.22,0.03054238]
[1757384880810,6.99231878,212.26,212.22,0.03054238]
[1757384881016,7.11,212.25,212.22,0.03054238]
[1757384881217,1.72110858,212.25,212.22,0.03054238]
[1757384881916,6.99231878,212.25,212.22,0.03054238]
[1757384882117,7.11,212.24,212.22,0.03054238]
[1757384882319,7.11,212.23,212.22,0.03054238]
[1757384884512,5.30119417,212.25,212.23,7.61]
[1757384884717,5.30119417,212.25,212.24,9.33110858]
[1757384884908,0.02998397,212.25,212.24,9.33110858]
[1757384885708,0.02998397,212.25,212.24,7.61]
[1757384885918,0.02998397,212.25,212.24,9.33110858]
[1757384886314,0.02998397,212.25,212.22,0.03054238]
[1757384886513,0.02998397,212.25,212.24,9.33110858]
[1757384889520,5.2712102,212.3,212.24,9.33110858]
[1757384889721,5.2712102,212.3,212.29,9.33110858]
[1757384890016,5.2712102,212.33,212.29,1.72110858]
[1757384890222,5.2712102,212.34,212.32,9.33110858]
[1757384890424,5.2712102,212.34,212.33,7.61]
[1757384890611,5.2712102,212.35,212.33,7.61]
[1757384890813,5.2712102,212.35,212.29,28.56]
[1757384890814,5.2712102,212.36,212.34,9.33110858]
[1757384891221,5.2712102,212.37,212.35,1.72110858]
[1757384891419,7.91179788,212.4,212.35,1.72110858]
[1757384891420,5.2712102,212.38,212.35,9.33110858]
[1757384892316,1.72110858,212.43,212.33,0.03137314]
[1757384892317,7.11,212.36,212.33,0.03137314]
[1757384892519,5.2712102,212.37,212.34,9.33110858]
[1757384893220,12.4612102,212.37,212.34,1.72110858]
[1757384893420,7.19,212.36,212.34,1.72110858]
[1757384894014,12.4612102,212.36,212.34,1.72110858]
[1757384894222,5.2712102,212.37,212.33,0.03137314]
[1757384894521,7.19,212.35,212.33,0.03137314]
[1757384894722,5.2712102,212.36,212.33,0.03137314]
[1757384895224,5.2712102,212.37,212.34,1.72110858]
[1757384895820,5.2712102,212.37,212.34,8.94110858]
[1757384896227,5.2712102,212.35,212.34,1.72110858]
[1757384897025,5.2712102,212.35,212.33,0.03137314]
[1757384897324,12.4612102,212.36,212.34,1.72110858]
[1757384897526,12.4612102,212.35,212.33,0.03137314]
[1757384897721,5.2712102,212.34,212.33,0.03137314]
[1757384900028,5.2712102,212.34,212.33,1.75248172]
[1757384900330,7.91179788,212.37,212.33,1.75248172]
[1757384900331,5.2712102,212.35,212.33,8.97248172]
[1757384900531,5.2712102,212.36,212.33,8.97248172]
[1757384900837,5.2712102,212.36,212.35,1.72110858]
[1757384901223,15.10179788,212.39,212.35,8.94110858]
[1757384901224,5.2712102,212.37,212.35,8.94110858]
[1757384902129,5.2712102,212.38,212.35,8.94110858]
[1757384903425,5.2712102,212.39,212.37,1.72110858]
[1757384903624,5.2712102,212.4,212.38,7.22]
[1757384903928,5.2712102,212.43,212.4,7.22]
[1757384904125,12.4612102,212.45,212.42,1.72110858]
[1757384904320,7.19,212.45,212.42,1.72110858]
[1757384905429,12.4612102,212.47,212.42,8.94110858]
[1757384906026,7.19,212.45,212.41,0.03277939]
[1757384906232,7.19,212.46,212.41,0.03277939]
[1757384906425,6.99231878,212.47,212.41,0.03277939]
[1757384906626,7.19,212.47,212.41,1.75388797]
[1757384908026,6.99231878,212.49,212.43,1.72110858]
[1757384908227,7.19,212.48,212.43,1.72110858]
[1757384908428,7.19,212.48,212.41,0.03277939]
[1757384909226,12.4612102,212.48,212.41,0.03277939]
[1757384909425,7.19,212.46,212.41,0.03277939]
[1757384909633,9.8726859,212.46,212.41,0.03277939]
[1757384910529,15.1438961,212.46,212.41,0.03277939]
[1757384910733,7.19,212.44,212.41,0.03277939]
[1757384911229,7.9538961,212.46,212.41,0.03277939]
[1757384911433,7.19,212.45,212.41,0.03277939]
[1757384911729,9.8726859,212.45,212.41,0.03277939]
[1757384911932,2.6826859,212.45,212.41,0.03277939]
[1757384912633,7.19,212.44,212.41,0.03277939]
[1757384913132,2.6826859,212.45,212.41,0.03277939]
[1757384913533,7.19,212.44,212.41,0.03277939]
[1757384914227,2.6826859,212.42,212.41,0.03277939]
[1757384914429,9.8726859,212.42,212.41,0.03277939]
[1757384917032,15.07042419,212.42,212.41,0.03277939]
[1757384917630,12.38773829,212.42,212.41,0.03277939]
[1757384918035,7.19,212.42,212.41,0.03277939]
[1757384920229,10.47929334,212.44,212.3,9.9026859]
[1757384920434,7.19,212.4,212.3,9.9026859]
[1757384920830,12.38935449,212.4,212.3,9.9026859]
[1757384922136,12.38935449,212.38,212.3,7.22]
[1757384923540,7.19,212.38,212.3,7.22]
[1757384924245,12.38935449,212.38,212.3,7.22]
[1757384926242,7.19,212.38,212.3,7.22]
[1757384928045,12.38935449,212.38,212.3,7.22]
[1757384931044,5.19935449,212.37,212.3,7.22]
[1757384931744,12.38935449,212.38,212.3,7.22]
[1757384931945,12.38935449,212.38,212.31,2.6826859]
[1757384932240,0.03366497,212.36,212.31,0.03389977]
[1757384932446,0.03366497,212.36,212.31,2.71658567]
[1757384932635,0.03366497,212.36,212.32,7.18]
[1757384932636,7.15,212.35,212.32,7.18]
[1757384933744,0.03366497,212.36,212.32,7.18]
[1757384933932,0.03366497,212.36,212.31,0.03389977]
[1757384934134,7.18366497,212.36,212.32,7.18]
[1757384934434,7.15,212.35,212.32,7.18]
[1757384934841,0.03366497,212.36,212.32,7.18]
[1757384935840,0.03366497,212.36,212.31,0.03389977]
[1757384936444,0.03366497,212.36,212.32,7.18]
[1757384936644,0.03366497,212.36,212.31,0.03389977]
[1757384936844,0.03366497,212.36,212.32,7.18]
[1757384937347,0.03366497,212.36,212.31,0.03389977]
[1757384937850,7.15,212.34,212.31,0.03389977]
[1757384938145,7.15,212.35,212.31,0.03389977]
[1757384938446,0.03366497,212.36,212.31,0.03389977]
[1757384938649,7.15,212.35,212.31,0.03389977]
[1757384939042,0.03366497,212.36,212.31,0.03389977]
[1757384939238,7.15,212.35,212.31,0.03389977]
[1757384939441,5.19935449,212.35,212.31,0.03389977]
[1757384939646,7.15,212.34,212.31,0.03389977]
[1757384940148,7.15,212.34,212.31,7.21389977]
[1757384940645,5.19935449,212.35,212.31,0.03389977]
[1757384940949,0.03366497,212.36,212.32,7.18]
[1757384941345,0.03366497,212.36,212.33,7.18]
[1757384941549,0.03366497,212.36,212.34,7.18]
[1757384941745,0.03366497,212.36,212.33,2.6826859]
[1757384942044,0.03366497,212.36,212.34,7.18]
[1757384942446,0.03366497,212.36,212.33,2.6826859]
[1757384942647,0.03366497,212.36,212.34,7.18]
[1757384942948,0.03366497,212.36,212.33,2.6826859]
[1757384943341,0.03366497,212.36,212.34,7.18]
[1757384943542,0.03366497,212.36,212.32,7.18]
[1757384943738,0.03366497,212.36,212.31,0.03389977]
[1757384944648,0.03366497,212.36,212.32,7.18]
[1757384945846,0.03366497,212.36,212.31,0.03389977]
[1757384946046,0.03366497,212.36,212.32,7.18]
[1757384946247,0.03366497,212.36,212.31,0.03389977]
[1757384946748,0.03366497,212.36,212.32,7.18]
[1757384947148,0.03366497,212.36,212.31,0.03389977]
[1757384947550,0.03366497,212.36,212.31,117.75389977]
[1757384947751,0.03366497,212.36,212.31,120.41658567]
[1757384947957,0.03366497,212.36,212.31,0.03389977]
[1757384948146,7.15,212.35,212.31,0.03389977]
[1757384948348,7.15,212.35,212.31,7.21389977]
[1757384948751,5.23301946,212.36,212.32,7.18]
[1757384948957,0.03366497,212.36,212.32,7.18]
[1757384949156,7.18366497,212.36,212.32,7.18]
[1757384952656,0.03366497,212.36,212.33,7.18]
[1757384952852,0.03366497,212.36,212.32,7.18]
[1757384953058,0.03366497,212.36,212.31,0.03389977]
[1757384953360,0.03366497,212.36,212.32,7.78]
[1757384953961,0.03366497,212.36,212.31,0.03389977]
[1757384954960,0.03366497,212.36,212.32,7.78]
[1757384955161,0.03366497,212.36,212.31,0.03389977]
[1757384955560,7.41,212.35,212.32,7.78]
[1757384955756,7.41,212.35,212.31,0.03389977]
[1757384955962,15.20660744,212.32,212.31,0.03389977]
[1757384956459,7.41,212.32,212.31,0.03389977]
[1757384957366,15.25544799,212.32,212.31,0.03389977]
[1757384957864,15.25544799,212.32,212.22,7.78]
[1757384957865,15.73544799,212.32,212.22,7.78]
[1757384958065,7.41,212.27,212.19,2.6826859]
[1757384959159,0.03343924,212.25,212.19,2.6826859]
[1757384962565,0.03343924,212.25,212.19,10.4626859]
[1757384964872,7.41,212.24,212.19,7.78]
[1757384965079,7.41,212.24,212.15,7.78]
[1757384965676,7.41,212.21,212.15,7.78]
[1757384965880,7.41,212.21,212.11,7.78]
[1757384966578,0.03111583,212.18,212.11,7.78]
[1757384968486,0.03111583,212.18,212.14,7.78]
[1757384968884,0.03111583,212.18,212.13,2.6826859]
[1757384969878,0.03111583,212.18,212.14,7.78]
[1757384970079,0.03111583,212.18,212.13,2.6826859]
[1757384970286,0.03111583,212.18,212.17,1.72095548]
[1757384970586,0.03111583,212.18,212.17,9.50095548]
[1757384987288,7.51,212.28,212.17,9.50095548]
[1757384987493,9.23095548,212.28,212.22,7.8]
[1757384987791,9.23095548,212.28,212.22,9.52095548]
[1757384988681,1.72095548,212.3,212.22,9.52095548]
[1757384989283,1.72095548,212.3,212.24,1.72095548]
[1757384989487,7.51,212.31,212.24,1.72095548]
[1757384990386,7.51,212.31,212.25,7.8]
[1757384991094,7.51,212.31,212.27,7.8]
[1757384991588,1.72095548,212.32,212.27,7.8]
[1757384991795,7.51,212.31,212.27,7.8]
[1757384992396,9.23095548,212.28,212.2,1.72095548]
[1757384994096,7.51,212.28,212.2,1.72095548]
[1757384994295,9.23095548,212.28,212.2,1.72095548]
[1757384995591,9.23095548,212.28,212.19,7.8]
[1757384995795,9.23095548,212.28,212.21,1.72095548]
[1757384996197,14.46058126,212.28,212.21,1.72095548]
[1757384997493,14.46058126,212.28,212.19,7.8]
[1757384997696,14.46058126,212.28,212.22,1.72095548]
[1757384997895,14.46058126,212.28,212.2,1.72095548]
[1757384997896,1.72095548,212.26,212.2,1.72095548]
[1757384998599,7.51,212.25,212.21,7.8]
[1757384998801,1.72095548,212.26,212.21,7.8]
[1757384999192,7.51,212.25,212.21,7.8]
[1757384999398,6.95058126,212.26,212.21,7.8]
[1757384999695,7.51,212.25,212.21,7.8]
[1757384999895,6.95058126,212.26,212.2,1.72095548]
[1757385000903,5.22962578,212.25,212.2,1.72095548]
[1757385001100,9.23095548,212.24,212.15,7.8]
[1757385001303,9.23095548,212.22,212.16,1.72095548]
[1757385002298,9.23095548,212.22,212.15,7.8]
[1757385002598,14.46058126,212.22,212.15,7.8]
[1757385004397,1.72095548,212.18,212.1,7.8]
[1757385004594,7.51,212.17,212.1,9.52095548]
[1757385004796,7.51,212.17,212.12,1.72095548]
[1757385004993,5.22962578,212.2,212.14,1.72095548]
[1757385005196,14.46058126,212.21,212.14,1.72095548]
[1757385005401,12.73962578,212.21,212.08,359.62]
[1757385005697,7.51,212.2,212.17,1.72095548]
[1757385006003,5.22962578,212.21,212.19,1.72095548]
[1757385006205,12.73962578,212.23,212.19,9.52095548]
[1757385006598,5.22962578,212.23,212.19,9.52095548]
[1757385006805,7.51,212.22,212.19,1.72095548]
[1757385007102,7.51,212.22,212.19,9.52095548]
[1757385007304,5.22962578,212.23,212.2,7.8]
[1757385007499,7.51,212.24,212.2,7.8]
[1757385007705,12.73962578,212.24,212.2,9.52095548]
[1757385008005,7.51,212.24,212.2,1.72095548]
[1757385008204,12.73962578,212.25,212.21,7.8]
[1757385008805,12.73962578,212.25,212.22,1.72095548]
[1757385009200,5.22962578,212.24,212.22,1.72095548]
[1757385009402,7.51,212.23,212.16,1.72095548]
[1757385009602,12.73962578,212.22,212.16,1.72095548]
[1757385010107,12.73962578,212.22,212.18,1.72095548]
[1757385010902,7.51,212.21,212.18,1.72095548]
[1757385011102,7.51,212.21,212.12,117.52]
[1757385011304,7.51,212.2,212.16,1.72095548]
[1757385013106,7.51,212.2,212.13,7.8]
[1757385013311,7.51,212.2,212.17,1.72095548]
[1757385013705,7.3,212.2,212.17,1.72095548]
[1757385014103,7.3,212.19,212.17,1.72095548]
[1757385014909,9.56640347,212.24,212.17,9.49095548]
[1757385014910,5.22962578,212.22,212.17,9.49095548]
[1757385015113,12.52962578,212.21,212.17,9.49095548]
[1757385015310,7.3,212.2,212.17,1.72095548]
[1757385015511,7.3,212.2,212.15,1.72095548]
[1757385015712,7.3,212.19,212.15,1.72095548]
[1757385015914,5.22962578,212.2,212.14,1.72095548]
[1757385016112,7.3,212.18,212.12,1.72095548]
[1757385016415,12.52962578,212.18,212.1,1.72095548]
[1757385016813,9.02095548,212.17,212.13,0.03105403]
[1757385017118,6.95058126,212.17,212.13,0.03105403]
[1757385017316,1.72095548,212.17,212.13,0.03105403]
[1757385017510,5.22962578,212.18,212.13,0.03105403]
[1757385017710,7.3,212.17,212.13,0.03105403]
[1757385018009,6.95058126,212.18,212.13,0.03105403]
[1757385018209,7.3,212.17,212.13,0.03105403]
[1757385018414,6.95058126,212.18,212.13,0.03105403]
[1757385018615,7.3,212.17,212.13,0.03105403]
[1757385019615,5.22962578,212.17,212.13,0.03105403]
[1757385020008,7.3,212.16,212.13,0.03105403]
[1757385020612,5.22962578,212.17,212.13,0.03105403]
[1757385020812,7.3,212.15,212.13,0.03105403]
[1757385021116,6.95058126,212.17,212.13,0.03105403]
[1757385021517,7.3,212.16,212.13,0.03105403]
[1757385021718,1.72095548,212.15,212.13,0.03105403]
[1757385021917,7.3,212.14,212.13,0.03105403]
[1757385026118,0.48,212.14,212.0,7.77]
[1757385026325,7.3,212.08,212.01,1.72095548]
[1757385026519,1.72095548,212.07,212.01,1.72095548]
[1757385026920,1.72095548,212.07,212.0,7.77]
[1757385027429,0.0312439,212.06,212.0,7.77]
[1757385027617,0.0312439,212.06,212.0,9.49095548]
[1757385030726,0.0312439,212.06,212.02,9.49095548]
[1757385031728,0.0312439,212.06,212.02,1.72095548]
[1757385031927,0.0312439,212.06,212.03,7.77]
[1757385033726,7.3312439,212.06,211.99,2.69281318]
[1757385033928,7.3312439,212.06,212.0,7.77]
[1757385035431,0.0312439,212.06,212.0,7.77]
[1757385035620,0.0312439,212.06,212.0,50.77]
[1757385035824,0.0312439,212.06,212.03,7.77]
[1757385036526,0.0312439,212.06,212.02,2.69281318]
[1757385037128,0.0312439,212.06,212.03,7.77]
[1757385037627,0.0312439,212.06,212.03,2.69281318]
[1757385037831,0.0312439,212.06,212.05,7.77]
[1757385039032,7.3,212.16,212.05,8.25]
[1757385039226,7.3,212.16,212.09,7.77]
[1757385039430,5.40583578,212.2,212.09,7.77]
[1757385039431,7.3,212.19,212.09,7.77]
[1757385042533,7.3,212.17,212.09,7.77]
[1757385046136,5.22962578,212.19,212.09,2.69281318]
[1757385046339,5.40583578,212.2,212.13,7.13]
[1757385046538,0.17621,212.2,212.13,7.13]
[1757385047135,0.17621,212.2,212.15,7.13]
[1757385047340,0.17621,212.2,212.17,2.69281318]
[1757385047538,15.58243896,212.28,212.18,7.13]
[1757385047737,12.88962578,212.28,212.18,7.13]
[1757385047938,12.88962578,212.28,212.2,7.13]
[1757385048642,5.22962578,212.29,212.22,2.69281318]
[1757385048849,12.88962578,212.32,212.23,7.13]
[1757385049038,5.22962578,212.3,212.23,7.13]
[1757385049355,12.88962578,212.32,212.23,7.13]
[1757385049548,0.03037349,212.29,212.25,7.13]
[1757385050843,0.16668,212.28,212.25,7.13]
[1757385051938,7.66,212.27,212.24,0.02986483]
[1757385052343,0.16668,212.28,212.24,0.02986483]
[1757385052538,2.85949318,212.28,212.24,0.02986483]
[1757385052743,7.66,212.27,212.24,0.02986483]
[1757385052947,2.85949318,212.28,212.24,0.02986483]
[1757385053851,7.66,212.27,212.24,0.02986483]
[1757385054249,2.85949318,212.28,212.24,0.02986483]
[1757385054552,7.66,212.27,212.24,0.02986483]
[1757385054741,2.85949318,212.28,212.24,0.02986483]
[1757385055148,7.66,212.27,212.24,0.02986483]
[1757385055547,2.85949318,212.28,212.24,0.02986483]
[1757385056253,5.22962578,212.26,212.24,0.02986483]
[1757385056448,7.66,212.25,212.24,0.02986483]
[1757385059249,12.88962578,212.25,212.24,0.02986483]
[1757385059848,5.22962578,212.27,212.24,7.15986483]
[1757385060050,5.39630578,212.28,212.25,7.13]
[1757385060760,13.05630578,212.28,212.24,0.02986483]
[1757385061263,7.82668,212.28,212.24,0.02986483]
[1757385062061,7.66,212.27,212.24,0.02986483]
[1757385062362,7.66,212.27,212.24,7.15986483]
[1757385062559,0.16668,212.28,212.25,7.13]
[1757385063464,7.82668,212.28,212.25,7.13]
[1757385064064,7.82668,212.28,212.24,0.02986483]
[1757385064065,7.66,212.27,212.24,0.02986483]
[1757385065464,5.25999927,212.29,212.24,0.02986483]
[1757385066061,7.66,212.28,212.24,7.15986483]
[1757385066465,7.66,212.28,212.24,0.02986483]
[1757385066662,7.66,212.28,212.25,7.13]
[1757385066863,2.69281318,212.27,212.24,0.02986483]
[1757385067062,7.66,212.26,212.24,0.02986483]
[1757385067264,7.66,212.26,212.15,7.13]
[1757385067559,7.66,212.24,212.15,7.13]
[1757385067759,2.69281318,212.25,212.1,7.13]
[1757385067760,7.66,212.21,212.1,7.13]
[1757385067966,7.66,212.18,212.1,7.13]
[1757385068558,0.03040206,212.16,212.1,7.13]
[1757385075669,0.03040206,212.16,212.13,7.74]
[1757385076365,0.03040206,212.16,212.15,10.43281318]
[1757385076562,0.03040206,212.16,212.15,10.91281318]
[1757385076868,5.22962578,212.29,212.16,7.74]
[1757385077064,7.92243896,212.32,212.23,7.74]
[1757385077673,2.69281318,212.32,212.23,7.74]
[1757385078271,7.92243896,212.32,212.23,7.74]
[1757385078966,0.16668,212.3,212.23,7.74]
[1757385079165,7.40668,212.3,212.23,7.74]
[1757385082075,0.16668,212.3,212.24,0.03122656]
[1757385082273,0.03422409,212.29,212.25,7.74]
[1757385082775,0.03422409,212.29,212.24,0.03122656]
[1757385082970,0.03422409,212.29,212.25,7.74]
[1757385083768,0.03422409,212.29,212.24,0.03122656]
[1757385083972,0.03422409,212.29,212.25,7.74]
[1757385084170,0.03422409,212.29,212.24,0.03122656]
[1757385084669,0.03422409,212.29,212.25,7.74]
[1757385084876,0.03422409,212.29,212.24,0.03122656]
[1757385085178,0.03422409,212.29,212.25,7.74]
[1757385085376,0.03422409,212.29,212.24,0.03122656]
[1757385085875,0.03422409,212.29,212.25,7.74]
[1757385086077,0.03422409,212.29,212.24,0.03122656]
[1757385086469,0.03422409,212.29,212.25,7.74]
[1757385086769,0.03422409,212.29,212.24,0.03122656]
[1757385086973,0.03422409,212.29,212.25,7.74]
[1757385087270,0.03422409,212.29,212.26,2.69281318]
[1757385087477,0.03422409,212.29,212.27,7.74]
[1757385087881,0.03422409,212.29,212.26,2.69281318]
[1757385088069,0.03422409,212.29,212.27,7.74]
[1757385088975,0.03422409,212.29,212.26,7.74]
[1757385089471,0.03422409,212.29,212.25,2.69281318]
[1757385089675,0.03422409,212.29,212.26,7.74]
[1757385090279,0.03422409,212.29,212.25,2.69281318]
[1757385090482,0.03422409,212.29,212.26,7.74]
[1757385091178,0.03422409,212.29,212.25,2.69281318]
[1757385091472,0.03422409,212.29,212.26,7.74]
[1757385091873,0.03422409,212.29,212.25,7.74]
[1757385092070,7.24,212.28,212.25,7.74]
[1757385092578,0.03422409,212.29,212.25,7.74]
[1757385092777,0.03422409,212.29,212.24,45.72403974]
[1757385093282,0.03422409,212.29,212.25,7.74]
[1757385093579,0.03422409,212.29,212.24,45.72403974]
[1757385093774,0.03422409,212.29,212.25,7.74]